bitfinex/quotes_ETHUSD_20241109
["timestamp","ask_amount","ask_price","bid_price","bid_amount"]
[1731136656693,2.48791603,3038.8,3037.9,0.7729]
[1731136657019,1.81313927,3038.6,3037.9,0.7729]
[1731136657320,0.55,3038.3,3037.9,0.7729]
[1731136657814,0.67477676,3038.6,3037.9,0.7729]
[1731136658110,0.67477676,3038.6,3037.6,1.26313927]
[1731136658111,0.67477676,3038.7,3038.0,0.06582876]
[1731136658420,0.1399287,3038.9,3038.4,0.7729]
[1731136658590,0.1399287,3038.9,3038.5,0.7729]
[1731136659827,0.55,3038.8,3038.5,0.7729]
[1731136659980,1.81313927,3038.8,3037.5,0.7591]
[1731136660377,2.48791603,3038.8,3037.5,0.7591]
[1731136660815,0.67477676,3038.7,3037.5,0.7591]
[1731136661020,0.55,3038.6,3037.7,0.7591]
[1731136662099,0.55,3038.6,3037.8,0.06582856]
[1731136662294,0.55,3038.6,3037.5,0.7591]
[1731136662618,0.55,3038.6,3037.6,0.82492854]
[1731136663193,1.15548142,3038.9,3037.6,0.82492854]
[1731136663194,1.22477676,3038.7,3037.6,0.82492854]
[1731136663612,0.1399287,3038.9,3037.8,0.7691]
[1731136663786,0.1399287,3038.9,3038.0,0.7591]
[1731136664621,0.1399287,3038.9,3038.1,0.7737]
[1731136665527,0.1399287,3038.9,3038.2,2.73652158]
[1731136665707,0.1399287,3038.9,3038.4,0.7737]
[1731136666025,0.1399287,3038.9,3038.6,0.7737]
[1731136666317,0.1399287,3038.9,3038.8,0.7737]
[1731136669327,0.1399287,3038.9,3038.8,3.51022158]
[1731136669526,0.1399287,3038.9,3038.8,6.86782424]
[1731136670096,0.67477676,3040.3,3039.0,0.7837]
[1731136670297,0.67477676,3040.4,3039.3,2.73652158]
[1731136670627,0.67477676,3040.5,3039.4,0.7737]
[1731136671083,0.67477676,3040.4,3039.4,0.7737]
[1731136671284,0.84380971,3040.4,3039.4,0.7737]
[1731136671488,0.55,3040.3,3039.5,0.83948994]
[1731136671920,0.55,3040.4,3039.5,0.83948994]
[1731136672259,0.55,3040.4,3039.5,0.7737]
[1731136672467,0.77403295,3040.4,3039.5,0.7737]
[1731136673138,0.77403295,3040.4,3039.6,0.0657906]
[1731136673354,0.55,3040.4,3039.7,0.7737]
[1731136673867,1.22477676,3040.5,3039.7,0.7737]
[1731136674062,0.55,3040.5,3039.7,0.7737]
[1731136674761,0.67477676,3040.6,3039.7,0.7737]
[1731136674981,0.67477676,3040.7,3039.7,0.7737]
[1731136675265,0.67477676,3040.8,3039.7,0.7737]
[1731136675473,0.67477676,3040.9,3039.7,0.7737]
[1731136675779,0.16903295,3040.9,3039.7,0.7737]
[1731136675937,0.55,3040.8,3039.7,0.7737]
[1731136678987,0.67477676,3041.3,3040.0,0.7709]
[1731136679143,0.67477676,3041.4,3040.2,0.7709]
[1731136679542,1.01555272,3041.5,3040.2,0.7709]
[1731136679543,0.67477676,3041.5,3040.2,0.7709]
[1731136679778,1.22349971,3041.4,3040.2,0.7709]
[1731136679979,0.54872295,3041.4,3040.2,0.7709]
[1731136680183,0.55,3041.3,3040.3,0.06577509]
[1731136680484,0.54872295,3041.4,3039.7,3.0]
[1731136680485,0.54872295,3041.4,3040.4,0.7709]
[1731136680675,0.67477676,3041.5,3040.4,0.7709]
[1731136680873,1.47167676,3041.6,3040.4,0.7709]
[1731136681684,4.47167676,3041.6,3040.4,0.7709]
[1731136682182,0.7969,3041.3,3040.4,0.7709]
[1731136682680,3.7969,3041.6,3040.4,0.7709]
[1731136682983,0.72081983,3041.5,3040.4,0.7709]
[1731136683848,0.55,3041.4,3040.4,0.7709]
[1731136684404,0.55,3041.4,3040.5,0.88336945]
[1731136684547,0.55,3041.4,3040.5,0.8176]
[1731136685660,3.28652158,3041.4,3040.5,0.8176]
[1731136685862,0.55,3041.2,3040.5,0.8176]
[1731136686077,2.73652158,3041.4,3040.5,0.8176]
[1731136686078,0.55,3041.4,3040.5,0.8176]
[1731136686377,0.55,3041.6,3040.5,0.8176]
[1731136686815,0.1509287,3041.9,3040.5,0.8176]
[1731136687016,3.8269,3041.8,3040.5,0.8176]
[1731136687220,0.67143503,3041.7,3040.5,0.8176]
[1731136688110,0.55,3041.6,3040.5,0.8176]
[1731136688284,0.55,3041.7,3040.5,0.8176]
[1731136689169,0.55,3041.8,3040.6,0.88337209]
[1731136689373,0.55,3041.8,3040.6,0.8176]
[1731136690303,0.55,3041.8,3040.4,2.73652158]
[1731136690304,0.55,3041.8,3040.7,0.88336399]
[1731136690933,0.55,3041.8,3040.7,2.80228557]
[1731136691105,0.55,3041.8,3040.9,0.8176]
[1731136691293,0.55,3041.8,3040.9,0.88336142]
[1731136692432,0.55,3041.8,3041.1,0.8176]
[1731136692592,0.55,3041.8,3041.3,0.8176]
[1731136692797,0.1509287,3041.9,3041.3,0.8176]
[1731136693026,0.1509287,3041.9,3041.4,0.06575109]
[1731136693225,0.1509287,3041.9,3041.5,0.8176]
[1731136694021,0.1509287,3041.9,3041.7,0.8176]
[1731136694502,0.1509287,3041.9,3041.8,1.17301216]
[1731136694696,0.1509287,3041.9,3041.8,0.8176]
[1731136696406,0.55,3041.8,3040.9,0.8176]
[1731136699233,0.1509287,3041.9,3040.9,0.8176]
[1731136700428,0.7967,3041.8,3040.9,0.8176]
[1731136700935,0.55,3041.7,3040.9,0.8176]
[1731136701430,0.1509287,3041.9,3040.9,0.8176]
[1731136702343,0.1509287,3041.9,3041.1,0.7575]
[1731136702837,0.1509287,3041.9,3041.3,0.7575]
[1731136703005,0.1509287,3041.9,3041.4,0.0657521]
[1731136703199,0.1509287,3041.9,3041.0,0.7575]
[1731136703399,0.1509287,3041.9,3040.9,0.7575]
[1731136703600,0.1509287,3041.9,3041.1,0.7575]
[1731136707043,0.55,3041.8,3041.1,0.7575]
[1731136708203,1.3304,3041.8,3041.1,0.7575]
[1731136708706,0.55,3041.8,3041.1,0.7575]
[1731136709216,0.1509287,3041.9,3041.1,0.7575]
[1731136714832,0.1509287,3041.9,3041.2,0.06575398]
[1731136715034,0.1509287,3041.9,3041.2,0.7928]
[1731136715217,0.1509287,3041.9,3041.3,0.85855398]
[1731136715821,0.0509287,3041.9,3041.3,0.85855398]
[1731136716026,0.0509287,3041.9,3041.4,3.0]
[1731136716222,0.0509287,3041.9,3041.6,0.7928]
[1731136717112,0.0509287,3041.9,3041.6,0.85854941]
[1731136718236,0.0509287,3041.9,3041.6,0.7928]
[1731136719710,0.0509287,3041.9,3041.7,0.06574332]
[1731136719931,0.0509287,3041.9,3041.8,0.8156]
[1731136722957,0.0509287,3041.9,3041.8,1.17081216]
[1731136725723,0.0509287,3041.9,3041.8,0.8156]
[1731136725953,0.0509287,3041.9,3041.1,0.7985]
[1731136727184,0.55,3041.8,3041.1,0.7985]
[1731136727663,1.22477676,3041.8,3041.1,0.7985]
[1731136727825,0.55,3041.8,3041.1,0.7985]
[1731136728043,0.7905,3041.7,3041.1,0.7985]
[1731136729880,0.55,3041.6,3040.8,0.7796]
[1731136730090,0.771,3041.0,3040.3,0.7796]
[1731136730244,0.55,3040.9,3040.3,0.7796]
[1731136730790,0.55,3040.9,3039.6,0.7796]
[1731136730942,0.55,3040.9,3039.7,0.35161216]
[1731136731279,0.55,3040.7,3039.7,0.35161216]
[1731136731442,0.771,3040.6,3039.6,0.7796]
[1731136731647,0.55,3040.5,3039.6,0.7796]
[1731136731885,1.22477676,3040.5,3039.6,0.7796]
[1731136732387,0.55,3040.5,3039.6,0.7796]
[1731136733759,0.771,3040.4,3039.2,0.7796]
[1731136733962,0.55,3040.3,3039.3,0.37796]
[1731136734149,0.55,3040.3,3039.4,0.06579052]
[1731136734489,0.55,3040.3,3039.3,0.37796]
[1731136735360,0.55,3040.3,3039.4,0.06579359]
[1731136736248,0.55,3040.3,3039.3,0.44375353]
[1731136736869,0.55,3040.4,3039.3,0.06579353]
[1731136737074,0.55,3040.2,3039.3,0.06579353]
[1731136737472,0.771,3040.3,3039.3,0.06579353]
[1731136737651,0.771,3040.3,3039.3,0.06579655]
[1731136739491,0.771,3040.3,3039.3,0.06578857]
[1731136740570,0.771,3040.3,3039.4,3.0]
[1731136740802,0.771,3040.3,3039.5,1.46891505]
[1731136742058,0.771,3040.3,3039.5,1.40313102]
[1731136742554,0.771,3040.3,3039.5,1.46891356]
[1731136742760,0.8242,3040.9,3039.7,3.0]
[1731136742996,0.8242,3040.9,3040.0,3.0]
[1731136743186,0.8242,3040.9,3040.2,0.8229]
[1731136743499,0.8242,3041.1,3040.3,0.06577083]
[1731136743681,0.0493475,3041.2,3040.2,3.55942158]
[1731136743854,0.0493475,3041.2,3040.4,0.7696]
[1731136744780,0.0493475,3041.2,3040.5,0.06576107]
[1731136745181,0.0493475,3041.2,3040.6,0.7696]
[1731136747616,0.0493475,3041.2,3040.7,0.06575842]
[1731136747814,0.0493475,3041.2,3040.6,0.7696]
[1731136748045,0.0493475,3041.2,3040.6,0.83535779]
[1731136748821,0.0493475,3041.2,3040.6,0.7696]
[1731136749152,0.0493475,3041.2,3040.6,0.83535737]
[1731136750216,0.0493475,3041.2,3040.8,2.73652158]
[1731136750418,0.0493475,3041.2,3041.0,0.7696]
[1731136751763,0.0493475,3041.2,3040.7,0.7696]
[1731136752566,0.0493475,3041.2,3040.4,0.7696]
[1731136754034,0.0493475,3041.2,3040.3,0.35594216]
[1731136754241,0.8231,3041.1,3040.2,0.7696]
[1731136755362,0.8231,3041.1,3039.9,0.7696]
[1731136755861,0.55,3041.0,3039.9,0.7696]
[1731136756029,0.55,3040.9,3039.9,0.7696]
[1731136756228,0.8231,3040.8,3039.7,0.7696]
[1731136756423,0.8231,3040.8,3039.8,0.35061216]
[1731136756663,0.8231,3040.6,3039.8,0.35061216]
[1731136756839,0.8231,3040.6,3039.4,0.7696]
[1731136757459,0.8231,3040.4,3039.2,0.7696]
[1731136758273,0.8231,3040.4,3039.0,3.0]
[1731136758450,0.55,3040.1,3038.9,0.7696]
[1731136758631,0.8231,3040.2,3038.9,0.7696]
[1731136758834,0.55,3040.3,3038.9,0.7696]
[1731136759169,0.55,3040.1,3038.9,0.7696]
[1731136759357,0.55,3040.3,3038.9,0.7696]
[1731136759564,0.8094,3040.2,3038.7,0.8166]
[1731136759763,0.8094,3040.0,3038.8,0.35531216]
[1731136760077,0.55,3039.9,3038.7,0.8166]
[1731136760275,0.55,3039.7,3038.7,0.8166]
[1731136760483,0.8094,3039.6,3038.7,0.8166]
[1731136762250,0.55,3039.5,3038.4,3.8166]
[1731136762455,0.55,3039.5,3038.5,0.72112117]
[1731136762834,0.8094,3039.4,3038.5,0.65531216]
[1731136763243,0.55,3039.3,3038.4,0.8166]
[1731136763681,0.55,3039.3,3038.1,0.8166]
[1731136764282,0.8142,3039.2,3038.1,0.8166]
[1731136765377,0.55,3039.1,3037.9,0.7664]
[1731136765614,2.74652158,3039.8,3037.9,0.7664]
[1731136765615,0.55,3038.9,3038.0,0.06582116]
[1731136767090,13.04935823,3040.3,3038.3,2.73652158]
[1731136767305,0.8142,3039.4,3038.6,2.73652158]
[1731136767622,0.8142,3039.4,3038.7,0.0658049]
[1731136767913,0.8142,3039.4,3038.8,0.28023265]
[1731136768870,0.8142,3039.4,3038.4,3.7664]
[1731136769674,0.55,3039.3,3038.4,3.7664]
[1731136769869,0.55,3039.3,3038.5,0.06581274]
[1731136771399,0.55,3039.3,3038.4,3.7664]
[1731136771722,0.55,3039.3,3038.4,0.7664]
[1731136773217,0.55,3039.3,3038.1,3.7664]
[1731136773537,0.55,3039.1,3038.2,0.65029216]
[1731136773681,0.8142,3039.0,3038.1,0.7664]
[1731136777914,0.55,3038.9,3038.1,0.7664]
[1731136778126,0.55,3038.9,3037.8,3.7664]
[1731136778434,0.55,3038.9,3037.9,0.65029216]
[1731136779331,0.8154,3038.8,3037.9,0.65029216]
[1731136780825,0.8154,3038.8,3038.0,0.06582438]
[1731136781343,0.8154,3039.5,3038.3,2.73652158]
[1731136781564,0.8154,3039.5,3038.4,0.33946507]
[1731136782911,0.55,3039.4,3038.4,0.27365216]
[1731136783545,0.55,3039.4,3038.5,0.06581294]
[1731136785952,0.8034,3039.3,3038.5,0.06581294]
[1731136786450,0.8034,3039.3,3038.4,3.27365216]
[1731136786629,0.8034,3039.3,3038.5,0.60101737]
[1731136787347,0.8034,3039.3,3038.1,0.81]
[1731136787348,0.8034,3039.3,3038.1,3.81]
[1731136791427,0.8034,3039.3,3038.4,3.0]
[1731136792176,0.8034,3039.3,3038.6,2.73652158]
[1731136792461,0.8034,3039.3,3038.7,0.06580795]
[1731136792766,0.8034,3039.3,3038.7,3.06580966]
[1731136792945,0.8034,3039.3,3038.8,0.58023312]
[1731136793260,0.8034,3039.3,3038.9,0.06580521]
[1731136793831,0.8034,3039.3,3038.9,0.06580523]
[1731136795462,0.8034,3039.3,3038.8,0.58023312]
[1731136798769,0.8034,3039.3,3038.3,3.49412158]
[1731136800141,0.8034,3039.3,3038.4,3.0]
[1731136802245,0.8226,3039.1,3037.9,0.7916]
[1731136802484,0.55,3039.0,3037.9,0.7916]
[1731136802780,0.8226,3038.9,3038.0,0.37916]
[1731136803172,0.8226,3038.9,3037.9,0.7916]
[1731136803378,0.8226,3038.9,3037.7,2.73652158]
[1731136804199,0.67477676,3039.1,3037.5,0.7916]
[1731136804200,0.55,3038.6,3037.5,0.7916]
[1731136804409,0.8307,3038.5,3037.3,0.8279]
[1731136804565,0.55,3038.4,3037.3,0.8279]
[1731136804763,0.8307,3038.3,3037.4,0.35644216]
[1731136805401,0.55,3038.2,3037.2,2.73652158]
[1731136805611,0.8307,3038.1,3037.2,2.73652158]
[1731136806364,0.8307,3038.1,3037.1,0.8279]
[1731136806566,0.8307,3038.1,3036.9,0.8279]
[1731136807068,1.03624768,3038.1,3036.9,0.8279]
[1731136807584,0.8307,3037.9,3036.6,3.56442158]
[1731136807998,0.8307,3037.9,3036.7,3.0]
[1731136809396,0.8307,3037.9,3036.8,0.06584467]
[1731136809603,0.8307,3037.9,3036.7,3.0]
[1731136809773,0.8307,3037.9,3036.8,0.65644216]
[1731136810106,0.8307,3037.7,3036.8,0.65644216]
[1731136810573,0.8307,3037.5,3036.4,0.8279]
[1731136811994,0.8307,3037.5,3036.4,3.8279]
[1731136814227,0.8307,3037.3,3036.4,3.0]
[1731136814455,0.8307,3037.3,3036.5,0.06585122]
[1731136814737,0.8307,3037.3,3036.5,0.6460885]
[1731136816308,0.8307,3037.3,3036.4,3.0]
[1731136816524,0.8307,3037.3,3036.1,3.0]
[1731136818515,0.8307,3037.3,3036.3,2.73652158]
[1731136819337,0.55,3037.2,3036.0,2.73652158]
[1731136819515,0.8102,3037.1,3036.1,3.0]
[1731136819716,0.8102,3037.1,3036.2,0.57365216]
[1731136820127,15.38936397,3038.0,3036.0,2.73652158]
[1731136820128,0.8102,3036.9,3036.0,2.73652158]
[1731136820328,0.8102,3036.7,3035.7,2.73652158]
[1731136821247,0.8102,3037.3,3036.6,2.73652158]
[1731136822209,0.8102,3037.3,3036.3,2.73652158]
[1731136822409,0.8102,3037.3,3036.4,3.0]
[1731136822914,0.8102,3037.3,3036.5,0.06585472]
[1731136823842,0.8102,3037.3,3036.6,2.73652158]
[1731136824043,0.8102,3037.3,3036.7,3.34608954]
[1731136824915,0.8102,3037.3,3036.9,2.73652158]
[1731136826052,0.8006,3038.5,3036.9,3.55472158]
[1731136826410,0.8006,3038.3,3037.2,2.73652158]
[1731136826609,0.8006,3038.3,3037.3,0.06584132]
[1731136826847,0.8006,3038.3,3037.2,2.73652158]
[1731136827022,0.8006,3038.3,3037.3,0.27365216]
[1731136827823,0.55,3038.2,3037.3,0.27365216]
[1731136828053,0.8006,3038.1,3037.3,0.27365216]
[1731136829053,0.8006,3037.9,3037.3,0.27365216]
[1731136829261,0.8006,3037.9,3036.8,0.8182]
[1731136829499,0.8006,3037.9,3036.8,3.55472158]
[1731136829752,0.8006,3037.9,3036.9,3.0]
[1731136832357,0.8006,3037.9,3037.0,0.06698491]
[1731136834761,0.55,3037.8,3037.0,0.06698491]
[1731136835066,0.55,3037.8,3036.1,0.8182]
[1731136835067,0.55,3037.6,3036.4,2.73652158]
[1731136835356,0.8006,3037.5,3036.5,0.33950576]
[1731136836122,0.8006,3037.5,3036.5,3.27365216]
[1731136836427,0.8006,3037.5,3036.6,0.06487405]
[1731136836628,0.55,3037.4,3036.6,0.06487405]
[1731136836863,0.55,3037.2,3036.6,0.06487405]
[1731136837081,0.55,3037.6,3036.1,2.73652158]
[1731136837082,0.55,3037.4,3036.1,2.73652158]
[1731136837285,0.8006,3037.3,3036.7,0.06486334]
[1731136837579,0.8006,3037.3,3035.5,3.55472158]
[1731136837785,0.8006,3037.1,3035.5,3.55472158]
[1731136837943,0.55,3036.8,3035.5,3.55472158]
[1731136838145,0.8006,3036.7,3035.5,0.8182]
[1731136838443,0.8006,3036.7,3035.6,2.73652158]
[1731136838642,0.8006,3036.7,3035.7,0.35547216]
[1731136838882,0.8006,3036.7,3035.7,0.420474]
[1731136840669,0.8006,3036.7,3035.7,0.48634433]
[1731136841256,0.8006,3036.7,3036.2,2.73652158]
[1731136841485,0.8006,3036.7,3036.3,0.06586252]
[1731136841677,0.8006,3036.7,3036.4,0.28023841]
[1731136841850,0.8006,3036.7,3036.3,0.13076445]
[1731136842051,0.8006,3036.7,3036.5,0.06488186]
[1731136842260,0.8006,3036.7,3036.4,0.0648919]
[1731136842584,0.8006,3036.7,3036.5,0.06487525]
[1731136842944,0.8006,3036.7,3036.2,2.8023828]
[1731136842945,0.8006,3036.7,3036.2,2.73652158]
[1731136843144,0.8006,3036.7,3036.6,0.0648586]
[1731136843346,0.8006,3036.7,3036.2,3.15747497]
[1731136843945,0.8006,3036.7,3036.3,0.06418808]
[1731136844363,0.8006,3036.7,3036.2,3.09161374]
[1731136844575,0.8006,3036.7,3036.3,0.13003208]
[1731136846108,0.8006,3036.7,3036.3,0.06417084]
[1731136846464,0.8006,3036.7,3035.9,3.0]
[1731136846706,0.8006,3036.7,3036.4,0.06416281]
[1731136847003,0.8006,3036.7,3036.5,0.06414617]
[1731136847209,0.8006,3036.7,3035.9,3.0]
[1731136847408,0.8006,3036.7,3036.0,0.06422941]
[1731136847608,0.8006,3036.7,3036.0,0.13009546]
[1731136847775,0.8006,3036.7,3036.0,0.06422941]
[1731136847970,0.8006,3036.7,3036.0,0.13009613]
[1731136848407,0.8006,3036.7,3036.0,0.06422941]
[1731136849007,0.8006,3036.7,3035.6,2.73652158]
[1731136849316,0.8006,3036.7,3035.7,0.06440427]
[1731136850777,0.55,3036.6,3035.7,0.06440427]
[1731136850976,0.7683,3036.3,3034.9,2.73652158]
[1731136851285,0.7683,3035.9,3035.0,0.06247289]
[1731136851475,0.7683,3035.7,3035.0,0.06247289]
[1731136852988,0.7683,3035.7,3034.7,3.0]
[1731136853386,0.7683,3035.7,3034.8,0.06248246]
[1731136855090,0.7683,3035.7,3034.7,2.73652158]
[1731136855328,0.7683,3035.7,3034.9,0.0624658]
[1731136855619,0.7683,3035.7,3035.0,0.0624542]
[1731136856102,0.7683,3035.7,3034.7,2.73652158]
[1731136856284,0.7683,3035.7,3035.1,0.06244259]
[1731136856487,0.7683,3035.7,3034.7,2.73652158]
[1731136856682,0.7683,3035.5,3035.2,0.06242593]
[1731136856903,0.7683,3035.5,3034.7,2.73652158]
[1731136857131,0.7683,3035.5,3035.3,0.06240927]
[1731136857319,0.7683,3035.5,3034.7,2.73652158]
[1731136857531,0.7683,3035.5,3035.4,0.06239262]
[1731136857741,0.7683,3035.4,3034.2,2.73652158]
[1731136857892,0.55,3035.3,3034.3,3.27365216]
[1731136858223,0.7683,3035.2,3034.3,3.33629204]
[1731136858423,0.7683,3035.2,3034.5,2.73652158]
[1731136858632,0.7683,3035.2,3034.6,0.12864971]
[1731136859090,0.7683,3035.2,3034.6,0.06275157]
[1731136859286,0.7549,3035.5,3034.8,2.73652158]
[1731136859717,0.7549,3035.5,3034.9,0.06270157]
[1731136860638,0.7549,3035.5,3034.9,0.12859212]
[1731136860836,0.7549,3035.5,3034.9,0.06270157]
[1731136862148,0.7549,3035.3,3034.3,3.0]
[1731136862435,0.7549,3035.1,3034.3,3.0]
[1731136862823,0.55,3035.0,3034.4,0.06306084]
[1731136862985,0.7549,3034.9,3033.9,2.73652158]
[1731136863192,0.7549,3034.9,3034.0,0.35051216]
[1731136863902,0.757,3034.7,3033.6,2.73652158]
[1731136864235,0.757,3034.5,3033.7,0.05931399]
[1731136865129,0.55,3034.4,3033.7,0.05931399]
[1731136865294,0.757,3034.3,3033.7,0.05931399]
[1731136866090,0.757,3034.3,3033.3,2.73652158]
[1731136866091,0.757,3034.3,3033.4,3.0]
[1731136866328,0.757,3034.3,3033.8,0.05929731]
[1731136866532,0.757,3034.3,3033.5,0.57365216]
[1731136866733,0.757,3034.3,3033.9,0.05928064]
[1731136866894,0.55,3034.2,3033.4,3.0]
[1731136867294,0.55,3034.2,3033.5,0.05934735]
[1731136867485,0.757,3034.1,3033.5,0.05934735]
[1731136868908,0.757,3034.1,3033.3,3.0]
[1731136869127,0.757,3034.1,3033.6,0.05933067]
[1731136869329,0.757,3034.1,3033.3,3.0]
[1731136869528,0.757,3034.1,3033.7,0.05931399]
[1731136869735,0.757,3034.1,3033.5,2.73652158]
[1731136869904,0.757,3034.1,3033.8,0.05929731]
[1731136870106,0.757,3034.1,3033.5,2.73652158]
[1731136870325,0.757,3034.1,3033.9,0.05928064]
[1731136870490,0.757,3034.1,3033.5,2.73652158]
[1731136870695,0.757,3034.1,3034.0,0.0595091]
[1731136870937,0.757,3034.1,3033.6,0.27365216]
[1731136871102,0.757,3034.1,3034.0,0.0595091]
[1731136871308,0.757,3034.1,3033.5,2.73652158]
[1731136871537,0.757,3034.1,3034.0,0.0595091]
[1731136872020,0.757,3034.1,3033.5,2.73652158]
[1731136872229,0.757,3034.1,3033.6,0.05957581]
[1731136872432,0.757,3034.1,3033.3,3.0]
[1731136872633,0.757,3034.1,3033.4,0.05960917]
[1731136873336,0.757,3033.9,3033.4,0.05960917]
[1731136874853,0.757,3033.9,3033.2,2.73652158]
[1731136875012,0.757,3033.9,3033.3,0.05987745]
[1731136875213,0.55,3033.8,3033.3,0.05987745]
[1731136875654,0.757,3033.9,3033.3,0.05987745]
[1731136875809,0.757,3033.9,3033.3,0.33951735]
[1731136876005,0.757,3033.9,3033.3,0.40544667]
[1731136876241,0.757,3033.9,3033.3,0.40544527]
[1731136876546,0.757,3033.9,3033.3,0.05987745]
[1731136877743,0.757,3033.9,3033.5,2.73652158]
[1731136877909,0.757,3033.9,3033.5,2.05555758]
[1731136878110,3.0,3034.6,3033.3,0.87197745]
[1731136878111,0.757,3034.6,3033.8,2.73652158]
[1731136878334,0.757,3034.6,3034.1,2.73652158]
[1731136878512,0.757,3034.6,3034.1,2.802432]
[1731136878706,0.757,3034.6,3034.4,2.73652158]
[1731136879012,0.8,3035.6,3034.5,0.05975049]
[1731136879648,0.8,3035.6,3033.6,0.8163]
[1731136879836,0.8,3035.6,3034.2,2.73652158]
[1731136880010,0.8,3035.6,3034.3,0.05968487]
[1731136880210,0.8,3035.5,3034.3,0.05968487]
[1731136880420,1.3179364,3035.4,3034.3,0.05968487]
[1731136880624,0.8,3035.3,3034.3,0.05968487]
[1731136880911,0.8,3035.2,3034.2,2.73652158]
[1731136881313,0.55,3035.1,3034.3,0.05968487]
[1731136881560,0.8,3035.0,3034.3,0.05968487]
[1731136881722,0.8,3035.0,3033.9,2.73652158]
[1731136882048,0.55,3035.1,3034.0,0.05973489]
[1731136882270,0.55,3034.7,3034.0,0.05973489]
[1731136882588,0.8,3034.6,3034.0,0.05973489]
[1731136882736,0.8,3034.6,3033.3,2.73652158]
[1731136882937,0.8,3034.4,3033.3,2.73652158]
[1731136883337,0.8,3034.2,3033.3,2.73652158]
[1731136884053,0.55,3034.1,3033.3,2.73652158]
[1731136884236,0.55,3034.1,3033.4,0.05803445]
[1731136884437,0.55,3034.1,3033.3,2.73652158]
[1731136884438,0.55,3034.1,3033.0,3.55282158]
[1731136884640,0.55,3033.9,3033.1,0.0580845]
[1731136884956,0.7823,3033.8,3033.1,0.0580845]
[1731136887071,0.55,3033.7,3032.9,0.089]
[1731136887239,0.55,3033.7,3033.2,0.05806782]
[1731136887572,0.55,3033.7,3032.9,0.089]
[1731136887784,0.55,3033.7,3033.3,0.05805113]
[1731136887982,0.55,3033.5,3032.9,0.089]
[1731136888141,0.73823,3033.5,3033.4,0.05803445]
[1731136888342,0.73823,3033.5,3032.9,0.089]
[1731136888877,0.73823,3033.5,3033.0,0.05810625]
[1731136889171,0.55,3033.3,3033.0,0.05810625]
[1731136890287,0.7823,3033.2,3033.0,0.05810625]
[1731136890442,0.55,3033.1,3033.0,0.05810625]
[1731136890778,0.55,3033.1,3032.9,0.089]
[1731136893877,0.7823,3033.2,3032.9,0.089]
[1731136894256,0.7823,3033.2,3033.0,0.05844015]
[1731136895285,1.3323,3033.9,3033.0,0.05844015]
[1731136895590,1.3711664,3033.8,3033.0,0.05844015]
[1731136895877,1.3323,3033.9,3032.9,0.089]
[1731136896084,1.3323,3033.9,3033.0,0.05844015]
[1731136896579,0.7823,3033.9,3033.1,0.81]
[1731136896787,0.7823,3033.9,3033.1,1.17939617]
[1731136896947,0.7823,3033.9,3033.2,0.0587071]
[1731136897899,0.55,3033.8,3033.1,1.24532804]
[1731136898084,0.7823,3034.5,3033.2,2.73652158]
[1731136898399,1.8671664,3034.4,3033.2,3.18682046]
[1731136898569,0.7823,3034.3,3033.2,2.79522868]
[1731136898774,0.55,3034.2,3033.2,2.79522868]
[1731136899494,0.7789,3034.1,3033.2,0.0587071]
[1731136899812,0.55,3034.0,3033.2,0.0587071]
[1731136904331,0.55,3034.0,3033.2,2.79522868]
[1731136904499,0.55,3034.0,3033.2,3.22827675]
[1731136904686,0.55,3034.0,3033.2,3.16234501]
[1731136905583,0.7789,3034.1,3033.5,2.73652158]
[1731136905988,0.50789387,3035.2,3033.5,2.73652158]
[1731136905989,0.7954,3035.1,3033.9,0.7508]
[1731136906327,0.7954,3035.1,3033.6,2.86086456]
[1731136906328,0.7954,3035.1,3034.4,0.7508]
[1731136906722,0.7954,3035.1,3034.5,0.05827923]
[1731136907589,0.7954,3035.1,3033.6,0.27365216]
[1731136907590,0.55,3035.0,3034.1,0.7508]
[1731136907986,0.55,3035.0,3034.2,0.05814477]
[1731136911743,1.3454,3035.1,3034.2,0.05814477]
[1731136911947,0.7954,3034.8,3034.2,0.05814477]
[1731136912147,0.7954,3034.8,3033.3,2.73652158]
[1731136912148,0.7954,3034.6,3033.5,0.7508]
[1731136912304,0.55,3034.5,3033.5,0.7508]
[1731136917928,0.55,3034.5,3033.6,0.05437855]
[1731136918357,0.55,3034.5,3033.5,0.7508]
[1731136918538,0.7954,3034.4,3033.5,0.7508]
[1731136918762,0.55,3034.3,3033.5,0.7508]
[1731136919670,0.55,3034.1,3033.0,0.817]
[1731136920027,0.55,3033.9,3033.0,0.817]
[1731136922843,3.0,3034.2,3033.0,0.817]
[1731136922844,0.7841,3034.2,3033.1,0.817]
[1731136923047,1.33213839,3034.2,3033.2,0.8604479]
[1731136923371,1.33213839,3034.2,3033.2,0.817]
[1731136924480,0.55,3034.1,3033.2,0.817]
[1731136925084,0.55,3034.1,3033.3,0.04344624]
[1731136925680,0.55,3034.1,3033.4,0.7698]
[1731136927087,0.55,3034.1,3033.5,0.04341288]
[1731136927787,0.55,3034.1,3033.4,0.7698]
[1731136930165,0.7276552,3034.1,3033.4,0.7698]
[1731136931918,0.55,3033.9,3033.4,0.7698]
[1731136932199,0.55,3033.9,3033.0,0.7698]
[1731136933962,0.55,3033.9,3033.1,0.04352542]
[1731136934305,0.7699,3033.7,3032.9,0.089]
[1731136934507,5.1649264,3033.6,3032.9,0.089]
[1731136936309,2.1649264,3033.6,3032.9,0.089]
[1731136936472,2.1649264,3033.6,3033.0,0.7698]
[1731136936668,0.55,3033.7,3033.0,0.7698]
[1731136939373,12.37936397,3033.8,3033.0,0.7698]
[1731136940906,0.55,3033.7,3033.0,0.7698]